[Event "3rd FIDE WCCC Rapid G12 2019"]
[Site "Minsk"]
[Date "2019.08.16"]
[Round "1.1"]
[White "Babic, Milana"]
[Black "Darmaeva, Nomina"]
[Result "1-0"]
[ECO "A06"]
[WhiteElo "1689"]
[BlackElo "1389"]
[Annotator "NA"]
[PlyCount "95"]
[EventDate "2019.08.16"]
[EventType "swiss"]
[EventCountry "BLR"]
[SourceTitle "playchess.com"]
[Source "ChessBase"]
[SourceQuality "1"]
[TimeControl "600+5"]

1. Nf3 {[%emt 0:00:00]} d5 {[%emt 0:00:00]} 2. g3 {[%emt 0:00:00]} Bg4 {[%emt 0:00:00]} 3. Bg2 {[%emt 0:00:00]} Nd7 {[%emt 0:00:03]} 4. d3 {[%emt 0:00:02]} Ngf6 {[%emt 0:00:03]} 5. Nbd2 {[%emt 0:00:02]} e5 {[%emt 0:00:15]} 6. O-O {[%emt 0:00:03]} Be7 {[%emt 0:00:08]} 7. b3 {[%emt 0:00:05]} O-O {[%emt 0:00:25]} 8. h3 {[%emt 0:00:11]} Bh5 {[%emt 0:00:18]} 9. Bb2 {[%emt 0:00:01]} Bd6 {[%emt 0:01:41]} 10. Re1 {[%emt 0:00:34]} c6 {[%emt 0:00:42]} 11. c4 {[%emt 0:00:35]} Rc8 {[%emt 0:00:54]} 12. Qc2 {[%emt 0:00:22]} h6 {[%emt 0:01:03]} 13. a3 a5 {[%emt 0:00:06]} 14. Rac1 {[%emt 0:00:57]} Rc7 {[%emt 0:02:13]} 15. Bc3 {[%emt 0:00:38]} Bxa3 {[%emt 0:00:34]} 16. Ra1 {[%emt 0:00:01]} Bb4 {[%emt 0:00:01]} 17. Bxe5 {[%emt 0:00:07]} Nxe5 {[%emt 0:00:11]} 18. Nxe5 {[%emt 0:00:01]} Re7 {[%emt 0:00:07]} 19. Nef3 {[%emt 0:01:02]} Bg6 {[%emt 0:00:03]} 20. Qb2 {[%emt 0:00:53]} c5 {[%emt 0:00:15]} 21. Ne5 {[%emt 0:00:48]} Bh7 {[%emt 0:00:09]} 22. cxd5 {[%emt 0:00:14]} Bxd2 {[%emt 0:00:07]} 23. Qxd2 {[%emt 0:00:02]} Rxe5 {[%emt 0:00:02]} 24. e4 {[%emt 0:00:09]} b6 {[%emt 0:00:03]} 25. f4 {[%emt 0:00:08]} Re7 {[%emt 0:00:06]} 26. Kh2 {[%emt 0:00:29]} Rfe8 {[%emt 0:00:08]} 27. Red1 {[%emt 0:00:15]} Rd7 {[%emt 0:00:11]} 28. Qc3 {[%emt 0:00:57]} Qe7 29. d6 {[%emt 0:00:01]} Qxd6 {[%emt 0:00:48]} 30. e5 Qc7 {[%emt 0:00:11]} 31. exf6 {[%emt 0:00:07]} Re3 {[%emt 0:00:30]} 32. fxg7 Rexd3 {[%emt 0:00:07]} 33. Rxd3 {[%emt 0:00:42]} Rxd3 {[%emt 0:00:02]} 34. Qb2 Qd6 {[%emt 0:00:07]} 35. Re1 {[%emt 0:00:33]} Qd4 {[%emt 0:00:21]} 36. Qe2 Kxg7 {[%emt 0:00:03]} 37. Qg4+ {[%emt 0:00:37]} Kf6 {[%emt 0:00:08]} 38. Qh4+ {[%emt 0:00:04]} Kg7 {[%emt 0:00:04]} 39. Qg4+ {[%emt 0:00:02]} Bg6 {[%emt 0:00:01]} 40. h4 {[%emt 0:00:25]} h5 {[%emt 0:00:04]} 41. Qh3 {[%emt 0:01:07]} Qf2 {[%emt 0:00:12]} 42. Rf1 {[%emt 0:00:05]} Qe2 {[%emt 0:00:05]} 43. f5 {[%emt 0:00:11]} Bh7 {[%emt 0:00:02]} 44. f6+ {[%emt 0:00:05]} Kh6 {[%emt 0:00:14]} 45. Rf4 {[%emt 0:00:30]} Bg6 {[%emt 0:00:05]} 46. Qc8 Rd8 {[%emt 0:00:52]} 47. Qxd8 {[%emt 0:00:21]} Kh7 {[%emt 0:00:04]} 48. Qf8 {[%emt 0:00:03]} 1-0

[Event "3rd FIDE WCCC Rapid G12 2019"]
[Site "Minsk"]
[Date "2019.08.16"]
[Round "1.2"]
[White "Vu, My Linh"]
[Black "Babic, Masa"]
[Result "1-0"]
[ECO "A53"]
[WhiteElo "1467"]
[BlackElo "1719"]
[Annotator "NA"]
[PlyCount "140"]
[EventDate "2019.08.16"]
[EventType "swiss"]
[EventCountry "BLR"]
[SourceTitle "playchess.com"]
[Source "ChessBase"]
[SourceQuality "1"]
[TimeControl "600+5"]

1. d4 {[%emt 0:00:00]} Nf6 {[%emt 0:00:00]} 2. c4 {[%emt 0:00:00]} d6 {[%emt 0:00:00]} 3. Nc3 {[%emt 0:00:00]} Nbd7 {[%emt 0:00:00]} 4. e4 {[%emt 0:00:00]} e5 {[%emt 0:00:02]} 5. d5 {[%emt 0:00:05]} Nc5 {[%emt 0:00:16]} 6. Bd3 {[%emt 0:00:07]} a5 {[%emt 0:00:05]} 7. Be3 {[%emt 0:00:13]} Na6 {[%emt 0:00:54]} 8. h3 {[%emt 0:00:39]} Be7 {[%emt 0:00:09]} 9. Nf3 {[%emt 0:00:03]} O-O {[%emt 0:00:08]} 10. O-O {[%emt 0:00:04]} c6 {[%emt 0:00:41]} 11. c5 {[%emt 0:01:09]} cxd5 {[%emt 0:01:44]} 12. exd5 {[%emt 0:00:09]} Nb4 {[%emt 0:01:13]} 13. a3 {[%emt 0:01:24]} Nxd3 {[%emt 0:00:31]} 14. Qxd3 {[%emt 0:00:03]} g6 {[%emt 0:00:42]} 15. Rfd1 {[%emt 0:02:20]} Bf5 {[%emt 0:00:43]} 16. Qd2 {[%emt 0:00:02]} Ne4 {[%emt 0:00:39]} 17. Nxe4 Bxe4 {[%emt 0:00:01]} 18. Ng5 {[%emt 0:00:44]} Bxg5 {[%emt 0:01:27]} 19. Bxg5 {[%emt 0:00:02]} f6 {[%emt 0:00:04]} 20. Be3 {[%emt 0:00:08]} Rc8 {[%emt 0:00:16]} 21. f3 {[%emt 0:00:15]} Bf5 {[%emt 0:00:06]} 22. Rac1 {[%emt 0:00:15]} Bd7 {[%emt 0:00:23]} 23. cxd6 {[%emt 0:00:05]} Ba4 {[%emt 0:00:15]} 24. Rxc8 {[%emt 0:00:07]} Qxc8 {[%emt 0:00:01]} 25. Rc1 {[%emt 0:00:01]} Qd8 {[%emt 0:00:07]} 26. Bc5 {[%emt 0:00:12]} b6 27. Be3 {[%emt 0:00:21]} Qxd6 {[%emt 0:00:07]} 28. Qf2 {[%emt 0:00:18]} Rb8 {[%emt 0:00:23]} 29. Qd2 {[%emt 0:00:41]} Bb3 {[%emt 0:00:09]} 30. Rc6 {[%emt 0:00:13]} Qxd5 {[%emt 0:00:34]} 31. Qxd5+ {[%emt 0:00:04]} Bxd5 {[%emt 0:00:02]} 32. Rxf6 {[%emt 0:00:46]} b5 {[%emt 0:00:03]} 33. Ra6 {[%emt 0:00:14]} a4 {[%emt 0:00:04]} 34. Rd6 {[%emt 0:00:03]} Bc4 {[%emt 0:00:06]} 35. Bc5 {[%emt 0:00:10]} Rc8 {[%emt 0:00:11]} 36. Bb4 {[%emt 0:00:05]} Bb3 {[%emt 0:00:10]} 37. Bc3 {[%emt 0:00:06]} Bc4 {[%emt 0:00:12]} 38. Bxe5 {[%emt 0:00:02]} Re8 {[%emt 0:00:07]} 39. f4 {[%emt 0:00:03]} g5 {[%emt 0:00:09]} 40. g3 {[%emt 0:00:03]} Be6 {[%emt 0:00:13]} 41. Kh2 {[%emt 0:00:18]} gxf4 {[%emt 0:00:11]} 42. gxf4 {[%emt 0:00:01]} Kf7 {[%emt 0:00:01]} 43. Rb6 {[%emt 0:00:04]} Bc4 {[%emt 0:00:04]} 44. Rh6 {[%emt 0:00:05]} Bd3 {[%emt 0:00:03]} 45. Rd6 {[%emt 0:00:01]} Bc4 {[%emt 0:00:04]} 46. Rd7+ {[%emt 0:00:02]} Re7 {[%emt 0:00:02]} 47. Rxe7+ {[%emt 0:00:04]} Kxe7 {[%emt 0:00:01]} 48. f5 {[%emt 0:00:03]} Bd3 {[%emt 0:00:03]} 49. f6+ {[%emt 0:00:02]} Ke6 {[%emt 0:00:00]} 50. Bc3 {[%emt 0:00:01]} h5 {[%emt 0:00:05]} 51. Kg3 {[%emt 0:00:01]} Bf5 {[%emt 0:00:07]} 52. Kh4 {[%emt 0:00:04]} Kf7 {[%emt 0:00:09]} 53. Kg3 {[%emt 0:00:11]} Ke6 {[%emt 0:00:03]} 54. Kh4 {[%emt 0:00:06]} Kf7 {[%emt 0:00:02]} 55. Kxh5 {[%emt 0:00:04]} Bxh3 {[%emt 0:00:01]} 56. Kg5 {[%emt 0:00:02]} Be6 {[%emt 0:00:03]} 57. Kf4 {[%emt 0:00:04]} Bc4 {[%emt 0:00:08]} 58. Ke5 {[%emt 0:00:01]} Be6 {[%emt 0:00:02]} 59. Kd6 {[%emt 0:00:02]} Bc4 {[%emt 0:00:02]} 60. Kc6 {[%emt 0:00:09]} Bd3 {[%emt 0:00:03]} 61. Kc5 {[%emt 0:00:05]} Bc4 {[%emt 0:00:02]} 62. Kb4 {[%emt 0:00:02]} Ke6 {[%emt 0:00:06]} 63. Ka5 {[%emt 0:00:06]} Kf7 {[%emt 0:00:06]} 64. Kb6 {[%emt 0:00:02]} Ke6 {[%emt 0:00:01]} 65. Kc5 {[%emt 0:00:02]} Kf7 {[%emt 0:00:02]} 66. Kd6 {[%emt 0:00:04]} Be6 {[%emt 0:00:05]} 67. Be5 {[%emt 0:00:06]} Bc4 {[%emt 0:00:02]} 68. Kd7 {[%emt 0:00:03]} Be6+ {[%emt 0:00:02]} 69. Kd8 {[%emt 0:00:02]} Bc4 {[%emt 0:00:02]} 70. Kd7 {[%emt 0:00:03]} Be6+ {[%emt 0:00:02]} 1-0

[Event "3rd FIDE WCCC Rapid G12 2019"]
[Site "Minsk"]
[Date "2019.08.16"]
[Round "1.3"]
[White "Kirdyashkina, Ekaterina"]
[Black "Olesk, Kamilla"]
[Result "1-0"]
[ECO "C01"]
[WhiteElo "1691"]
[BlackElo "1267"]
[Annotator "NA"]
[PlyCount "77"]
[EventDate "2019.08.16"]
[EventType "swiss"]
[EventCountry "BLR"]
[SourceTitle "playchess.com"]
[Source "ChessBase"]
[SourceQuality "1"]
[TimeControl "600+5"]

1. e4 {[%emt 0:00:00]} e6 {[%emt 0:00:00]} 2. d4 {[%emt 0:00:00]} d5 {[%emt 0:00:00]} 3. exd5 {[%emt 0:00:01]} exd5 {[%emt 0:00:01]} 4. c4 {[%emt 0:00:01]} dxc4 {[%emt 0:00:16]} 5. Bxc4 {[%emt 0:00:03]} Nf6 {[%emt 0:00:18]} 6. Nf3 {[%emt 0:00:06]} Bd6 {[%emt 0:00:28]} 7. O-O {[%emt 0:00:11]} O-O {[%emt 0:00:08]} 8. Nc3 {[%emt 0:00:02]} Bg4 {[%emt 0:03:15]} 9. h3 {[%emt 0:00:02]} Bh5 {[%emt 0:00:03]} 10. Bg5 {[%emt 0:00:08]} Nc6 {[%emt 0:02:10]} 11. Be2 {[%emt 0:00:58]} Bxf3 {[%emt 0:01:35]} 12. Bxf3 {[%emt 0:00:04]} Nxd4 {[%emt 0:00:36]} 13. Bxb7 {[%emt 0:00:28]} Rb8 {[%emt 0:00:02]} 14. Bd5 {[%emt 0:00:03]} c5 {[%emt 0:01:06]} 15. b3 {[%emt 0:02:25]} h6 {[%emt 0:00:43]} 16. Bxf6 {[%emt 0:00:53]} Qxf6 {[%emt 0:00:09]} 17. Ne4 {[%emt 0:00:04]} Qe5 {[%emt 0:00:10]} 18. Nxd6 {[%emt 0:00:04]} Qxd6 {[%emt 0:00:19]} 19. Bc4 {[%emt 0:00:05]} Rbd8 {[%emt 0:00:04]} 20. Qg4 {[%emt 0:00:15]} Rfe8 {[%emt 0:00:10]} 21. Rad1 {[%emt 0:00:16]} Qf6 {[%emt 0:00:01]} 22. Kh1 {[%emt 0:00:28]} Re7 {[%emt 0:00:07]} 23. Qg3 {[%emt 0:00:23]} Rde8 {[%emt 0:00:03]} 24. Qc3 {[%emt 0:00:37]} Qg6 {[%emt 0:00:05]} 25. b4 {[%emt 0:00:13]} Ne2 {[%emt 0:00:07]} 26. Bxe2 {[%emt 0:00:07]} Rxe2 {[%emt 0:00:01]} 27. bxc5 {[%emt 0:00:27]} Rxa2 {[%emt 0:00:01]} 28. Rc1 {[%emt 0:00:02]} Ree2 {[%emt 0:00:05]} 29. Qf3 {[%emt 0:00:23]} Qe6 {[%emt 0:00:11]} 30. c6 {[%emt 0:01:19]} Rec2 {[%emt 0:00:02]} 31. c7 {[%emt 0:00:09]} Qc8 {[%emt 0:00:10]} 32. Qb3 {[%emt 0:00:13]} Rxc1 33. Rxc1 {[%emt 0:00:01]} Rxf2 {[%emt 0:00:08]} 34. Qb8 {[%emt 0:00:10]} Qxb8 {[%emt 0:00:09]} 35. cxb8=Q+ {[%emt 0:00:07]} Kh7 {[%emt 0:00:02]} 36. Qb1+ {[%emt 0:00:04]} g6 {[%emt 0:00:02]} 37. Rc7 {[%emt 0:00:03]} Kg7 {[%emt 0:00:02]} 38. Qa1+ {[%emt 0:00:02]} Kf8 {[%emt 0:00:04]} 39. Qh8# 1-0

[Event "3rd FIDE WCCC Rapid G12 2019"]
[Site "Minsk"]
[Date "2019.08.16"]
[Round "1.4"]
[White "Shikhalieva, Ariana"]
[Black "Ivanytska, Liudmyla"]
[Result "0-1"]
[ECO "D00"]
[WhiteElo "1381"]
[BlackElo "1539"]
[Annotator "NA"]
[PlyCount "140"]
[EventDate "2019.08.16"]
[EventType "swiss"]
[EventCountry "BLR"]
[SourceTitle "playchess.com"]
[Source "ChessBase"]
[SourceQuality "1"]
[TimeControl "600+5"]

1. d4 {[%emt 0:00:00]} d5 {[%emt 0:00:00]} 2. Bf4 {[%emt 0:00:00]} Nf6 {[%emt 0:00:00]} 3. e3 {[%emt 0:00:00]} e6 {[%emt 0:00:01]} 4. Nf3 {[%emt 0:00:01]} Bd6 {[%emt 0:00:01]} 5. Bg3 {[%emt 0:00:01]} O-O {[%emt 0:00:07]} 6. Bd3 {[%emt 0:00:02]} b6 {[%emt 0:00:02]} 7. Nbd2 {[%emt 0:00:03]} Bb7 {[%emt 0:00:01]} 8. O-O {[%emt 0:00:02]} c5 {[%emt 0:00:02]} 9. c3 {[%emt 0:00:01]} Qc7 {[%emt 0:00:03]} 10. Qc2 {[%emt 0:00:07]} h6 {[%emt 0:00:03]} 11. a3 {[%emt 0:00:07]} Nbd7 {[%emt 0:00:02]} 12. Rae1 {[%emt 0:00:04]} Bxg3 {[%emt 0:00:28]} 13. hxg3 {[%emt 0:00:02]} Rac8 {[%emt 0:00:01]} 14. Qb1 {[%emt 0:00:05]} c4 {[%emt 0:00:09]} 15. Bc2 {[%emt 0:00:04]} e5 {[%emt 0:00:01]} 16. e4 {[%emt 0:00:15]} exd4 {[%emt 0:00:24]} 17. Nxd4 {[%emt 0:00:02]} dxe4 {[%emt 0:00:05]} 18. Bxe4 {[%emt 0:00:12]} Nc5 {[%emt 0:00:04]} 19. Bxb7 {[%emt 0:00:15]} Qxb7 {[%emt 0:00:21]} 20. Nxc4 {[%emt 0:00:17]} Nce4 {[%emt 0:00:16]} 21. Qa2 {[%emt 0:01:12]} b5 {[%emt 0:00:43]} 22. Na5 {[%emt 0:00:34]} Qb6 {[%emt 0:00:25]} 23. Nab3 {[%emt 0:00:08]} a5 {[%emt 0:00:02]} 24. Re2 {[%emt 0:00:22]} b4 {[%emt 0:00:10]} 25. cxb4 {[%emt 0:00:46]} a4 {[%emt 0:00:19]} 26. Nc5 {[%emt 0:00:38]} Nxc5 {[%emt 0:00:02]} 27. bxc5 {[%emt 0:00:02]} Qxc5 {[%emt 0:00:03]} 28. Nf3 {[%emt 0:00:31]} Rfe8 {[%emt 0:00:38]} 29. Rxe8+ {[%emt 0:00:09]} Rxe8 {[%emt 0:00:04]} 30. Qb1 {[%emt 0:00:33]} Rb8 {[%emt 0:00:18]} 31. Rc1 {[%emt 0:01:05]} Qb6 {[%emt 0:00:20]} 32. Rc2 {[%emt 0:01:23]} Ne4 {[%emt 0:00:13]} 33. Qc1 {[%emt 0:00:56]} Rd8 {[%emt 0:00:29]} 34. g4 {[%emt 0:01:13]} Qe6 {[%emt 0:00:56]} 35. Rc4 {[%emt 0:00:53]} Qxg4 {[%emt 0:01:50]} 36. Qc2 {[%emt 0:00:17]} f5 {[%emt 0:00:15]} 37. Rxa4 {[%emt 0:00:12]} Qh5 {[%emt 0:00:19]} 38. Qb3+ {[%emt 0:00:07]} Kh8 {[%emt 0:00:02]} 39. Rd4 {[%emt 0:00:24]} Rc8 {[%emt 0:00:11]} 40. Qd1 {[%emt 0:00:04]} Qe8 {[%emt 0:00:11]} 41. b4 {[%emt 0:00:02]} Kh7 {[%emt 0:00:09]} 42. Nh4 {[%emt 0:00:03]} Qe6 {[%emt 0:00:08]} 43. Nf3 {[%emt 0:00:04]} Qa2 {[%emt 0:00:08]} 44. a4 {[%emt 0:00:02]} Qxf2+ {[%emt 0:00:02]} 45. Kh1 {[%emt 0:00:02]} Rc2 {[%emt 0:00:18]} 46. Qg1 {[%emt 0:00:04]} Ng3+ {[%emt 0:00:14]} 47. Kh2 {[%emt 0:00:01]} Qxf3 {[%emt 0:00:05]} 48. Rh4 {[%emt 0:00:25]} Nf1+ {[%emt 0:00:10]} 49. Kh1 {[%emt 0:00:02]} Ng3+ {[%emt 0:00:21]} 50. Kh2 {[%emt 0:00:01]} Qc3 {[%emt 0:00:15]} 51. Rh3 {[%emt 0:00:04]} Rc1 {[%emt 0:00:19]} 52. Rxg3 {[%emt 0:00:12]} Qxg3+ {[%emt 0:00:01]} 53. Kxg3 {[%emt 0:00:03]} Rxg1 {[%emt 0:00:01]} 54. Kf4 {[%emt 0:00:04]} Ra1 {[%emt 0:00:02]} 55. a5 {[%emt 0:00:01]} Ra4 {[%emt 0:00:00]} 56. Kxf5 {[%emt 0:00:02]} Rxb4 {[%emt 0:00:01]} 57. g4 {[%emt 0:00:02]} Rb5+ {[%emt 0:00:01]} 58. Kf4 {[%emt 0:00:02]} Rxa5 59. Ke4 {[%emt 0:00:01]} Kg6 {[%emt 0:00:01]} 60. Kf4 {[%emt 0:00:01]} Kf6 {[%emt 0:00:01]} 61. g5+ {[%emt 0:00:02]} hxg5+ {[%emt 0:00:01]} 62. Kg4 {[%emt 0:00:01]} Ra4+ {[%emt 0:00:01]} 63. Kg3 {[%emt 0:00:02]} g4 {[%emt 0:00:08]} 64. Kg2 {[%emt 0:00:02]} Ra3 {[%emt 0:00:01]} 65. Kf2 {[%emt 0:00:01]} g3+ {[%emt 0:00:01]} 66. Kg2 {[%emt 0:00:01]} g5 {[%emt 0:00:01]} 67. Kh3 {[%emt 0:00:02]} Kf5 {[%emt 0:00:04]} 68. Kg2 {[%emt 0:00:01]} Kg4 {[%emt 0:00:03]} 69. Kg1 {[%emt 0:00:01]} Kf3 {[%emt 0:00:02]} 70. Kf1 {[%emt 0:00:02]} Ra1# {[%emt 0:00:01]} 0-1

[Event "3rd FIDE WCCC Rapid G12 2019"]
[Site "Minsk"]
[Date "2019.08.16"]
[Round "1.5"]
[White "Lomakina, Anzhelika"]
[Black "Prochaieva, Nina"]
[Result "1-0"]
[ECO "B01"]
[WhiteElo "1732"]
[BlackElo "1033"]
[Annotator "NA"]
[PlyCount "111"]
[EventDate "2019.08.16"]
[EventType "swiss"]
[EventCountry "BLR"]
[SourceTitle "playchess.com"]
[Source "ChessBase"]
[SourceQuality "1"]
[TimeControl "600+5"]

1. e4 {[%emt 0:00:00]} d5 {[%emt 0:00:00]} 2. exd5 {[%emt 0:00:00]} Qxd5 {[%emt 0:00:00]} 3. Nc3 {[%emt 0:00:00]} Qd6 {[%emt 0:00:01]} 4. d4 {[%emt 0:00:02]} Nf6 {[%emt 0:00:08]} 5. Nf3 {[%emt 0:00:01]} a6 {[%emt 0:00:42]} 6. Bc4 {[%emt 0:00:52]} b5 {[%emt 0:01:27]} 7. Bb3 {[%emt 0:00:26]} e6 {[%emt 0:01:27]} 8. Ne5 {[%emt 0:02:53]} Bb7 {[%emt 0:01:34]} 9. O-O {[%emt 0:00:26]} Be7 {[%emt 0:00:54]} 10. Bf4 {[%emt 0:00:07]} Qd8 {[%emt 0:00:31]} 11. Be3 {[%emt 0:03:20]} Nc6 {[%emt 0:01:14]} 12. a4 {[%emt 0:01:04]} b4 {[%emt 0:00:57]} 13. Ne2 {[%emt 0:00:01]} Nxe5 {[%emt 0:00:11]} 14. dxe5 {[%emt 0:00:01]} Qxd1 15. Raxd1 {[%emt 0:00:02]} Nd5 {[%emt 0:00:33]} 16. Bxd5 {[%emt 0:00:56]} Bxd5 {[%emt 0:00:02]} 17. Nf4 {[%emt 0:00:02]} Bb7 {[%emt 0:00:11]} 18. Nd3 {[%emt 0:00:07]} a5 {[%emt 0:00:13]} 19. Bc5 {[%emt 0:00:35]} Bxc5 {[%emt 0:00:16]} 20. Nxc5 {[%emt 0:00:01]} Bc6 {[%emt 0:00:01]} 21. Rd4 {[%emt 0:00:29]} O-O {[%emt 0:00:08]} 22. Rfd1 {[%emt 0:00:01]} f6 {[%emt 0:00:18]} 23. Nxe6 {[%emt 0:00:21]} Rfc8 {[%emt 0:00:58]} 24. exf6 {[%emt 0:00:01]} gxf6 {[%emt 0:00:02]} 25. f4 {[%emt 0:00:01]} f5 {[%emt 0:00:01]} 26. Rc4 {[%emt 0:00:06]} Ra6 {[%emt 0:00:09]} 27. Nd4 {[%emt 0:00:11]} Bb7 {[%emt 0:00:03]} 28. Nxf5 {[%emt 0:00:02]} Kf7 {[%emt 0:00:07]} 29. Rd7+ {[%emt 0:00:01]} Kf6 {[%emt 0:00:03]} 30. g4 {[%emt 0:00:05]} c5 {[%emt 0:00:09]} 31. Rxb7 {[%emt 0:00:01]} Rd8 {[%emt 0:00:03]} 32. Rxc5 {[%emt 0:00:05]} Rd1+ {[%emt 0:00:04]} 33. Kf2 {[%emt 0:00:03]} Rd2+ {[%emt 0:00:03]} 34. Ke3 {[%emt 0:00:03]} Rxh2 {[%emt 0:00:04]} 35. Rbc7 {[%emt 0:00:04]} Rh3+ {[%emt 0:00:02]} 36. Kf2 {[%emt 0:00:01]} Re6 {[%emt 0:00:03]} 37. R7c6 {[%emt 0:00:02]} Rh2+ {[%emt 0:00:04]} 38. Kg3 {[%emt 0:00:02]} Rhe2 {[%emt 0:00:03]} 39. Rxe6+ {[%emt 0:00:06]} Rxe6 {[%emt 0:00:02]} 40. Rxa5 {[%emt 0:00:03]} Re2 {[%emt 0:00:07]} 41. Ra6+ {[%emt 0:00:03]} Kf7 {[%emt 0:00:05]} 42. Rc6 {[%emt 0:00:05]} Rd2 {[%emt 0:00:09]} 43. a5 {[%emt 0:00:03]} Rd1 {[%emt 0:00:12]} 44. a6 {[%emt 0:00:05]} Rg1+ {[%emt 0:00:02]} 45. Kf2 {[%emt 0:00:12]} Ra1 {[%emt 0:00:06]} 46. Rc7+ {[%emt 0:00:02]} Ke6 {[%emt 0:00:04]} 47. a7 {[%emt 0:00:01]} Kd5 {[%emt 0:00:04]} 48. Rxh7 {[%emt 0:00:05]} Ke4 {[%emt 0:00:02]} 49. Nd6+ {[%emt 0:00:06]} Kxf4 {[%emt 0:00:04]} 50. Nb5 {[%emt 0:00:01]} Kxg4 {[%emt 0:00:04]} 51. Rh8 {[%emt 0:00:01]} Rc1 {[%emt 0:00:15]} 52. a8=Q {[%emt 0:00:11]} Rxc2+ {[%emt 0:00:04]} 53. Ke1 {[%emt 0:00:05]} Rxb2 {[%emt 0:00:09]} 54. Qe4+ {[%emt 0:00:02]} Kg3 {[%emt 0:00:02]} 55. Rg8+ {[%emt 0:00:05]} Kh3 {[%emt 0:00:04]} 56. Qh7# {[%emt 0:00:03]} 1-0

[Event "3rd FIDE WCCC Rapid G12 2019"]
[Site "Minsk"]
[Date "2019.08.16"]
[Round "1.6"]
[White "Jansone, Melanija Luize"]
[Black "Basova, Yuliya"]
[Result "0-1"]
[ECO "B32"]
[WhiteElo "1193"]
[BlackElo "1699"]
[Annotator "NA"]
[PlyCount "86"]
[EventDate "2019.08.16"]
[EventType "swiss"]
[EventCountry "BLR"]
[SourceTitle "playchess.com"]
[Source "ChessBase"]
[SourceQuality "1"]
[TimeControl "600+5"]

1. e4 {[%emt 0:00:00]} c5 {[%emt 0:00:00]} 2. Nf3 {[%emt 0:00:00]} Nc6 {[%emt 0:00:00]} 3. d4 {[%emt 0:00:00]} cxd4 {[%emt 0:00:00]} 4. Nxd4 {[%emt 0:00:00]} g6 {[%emt 0:00:00]} 5. Be3 {[%emt 0:00:00]} Bg7 {[%emt 0:00:04]} 6. Nc3 {[%emt 0:00:05]} Nf6 {[%emt 0:00:02]} 7. Be2 {[%emt 0:00:03]} O-O {[%emt 0:00:09]} 8. O-O {[%emt 0:00:21]} d5 {[%emt 0:00:24]} 9. exd5 {[%emt 0:00:26]} Nb4 {[%emt 0:00:06]} 10. f3 {[%emt 0:00:26]} Nbxd5 {[%emt 0:00:12]} 11. Nxd5 {[%emt 0:00:13]} Nxd5 {[%emt 0:00:03]} 12. Bf2 {[%emt 0:00:09]} Nf4 {[%emt 0:00:41]} 13. Bc4 {[%emt 0:00:53]} b6 14. c3 {[%emt 0:00:09]} Bb7 {[%emt 0:01:07]} 15. Qc2 {[%emt 0:00:37]} Rc8 {[%emt 0:00:15]} 16. Bb3 {[%emt 0:00:14]} Ba6 {[%emt 0:00:16]} 17. Rfe1 {[%emt 0:00:34]} e5 {[%emt 0:00:26]} 18. Ne2 {[%emt 0:00:53]} Nxe2+ {[%emt 0:00:06]} 19. Rxe2 {[%emt 0:00:01]} Bxe2 {[%emt 0:00:02]} 20. Qxe2 {[%emt 0:00:01]} Qe7 {[%emt 0:00:17]} 21. Bg3 {[%emt 0:00:14]} Rfd8 {[%emt 0:00:22]} 22. Re1 {[%emt 0:00:13]} Kf8 {[%emt 0:01:03]} 23. h3 {[%emt 0:00:22]} Qg5 {[%emt 0:00:20]} 24. Bxe5 {[%emt 0:01:11]} Rd2 {[%emt 0:00:28]} 25. Bd6+ {[%emt 0:01:10]} Rxd6 {[%emt 0:00:11]} 26. Qa6 {[%emt 0:00:42]} Qc5+ {[%emt 0:00:52]} 27. Kh1 {[%emt 0:00:17]} b5 {[%emt 0:00:58]} 28. Qb7 {[%emt 0:00:54]} Rf6 {[%emt 0:00:18]} 29. Qe4 {[%emt 0:00:19]} Kg8 {[%emt 0:01:18]} 30. Qe2 {[%emt 0:00:27]} a5 {[%emt 0:00:40]} 31. a3 {[%emt 0:00:08]} a4 {[%emt 0:00:23]} 32. Ba2 {[%emt 0:00:06]} Bh6 {[%emt 0:00:14]} 33. Rd1 {[%emt 0:00:29]} Kg7 {[%emt 0:00:37]} 34. Re1 {[%emt 0:00:19]} Rd8 {[%emt 0:00:09]} 35. Rd1 {[%emt 0:00:28]} Rxd1+ {[%emt 0:00:05]} 36. Qxd1 {[%emt 0:00:00]} Rd6 {[%emt 0:00:04]} 37. Qe2 {[%emt 0:00:04]} Qe3 {[%emt 0:00:07]} 38. Qc2 {[%emt 0:00:31]} Qe1+ {[%emt 0:00:12]} 39. Kh2 {[%emt 0:00:07]} Bf4+ {[%emt 0:00:02]} 40. g3 {[%emt 0:00:04]} Rd2+ {[%emt 0:00:08]} 41. Qxd2 {[%emt 0:00:03]} Qxd2+ {[%emt 0:00:02]} 42. Kg1 {[%emt 0:00:04]} Bxg3 {[%emt 0:00:08]} 43. Kf1 {[%emt 0:00:02]} Qf2# {[%emt 0:00:02]} 0-1

[Event "3rd FIDE WCCC Rapid G12 2019"]
[Site "Minsk"]
[Date "2019.08.16"]
[Round "2.1"]
[White "Szczotka, Klara"]
[Black "Babic, Milana"]
[Result "1-0"]
[ECO "B15"]
[WhiteElo "1732"]
[BlackElo "1689"]
[Annotator "NA"]
[PlyCount "84"]
[EventDate "2019.08.16"]
[EventType "swiss"]
[EventCountry "BLR"]
[SourceTitle "playchess.com"]
[Source "ChessBase"]
[SourceQuality "1"]
[TimeControl "600+5"]

1. e4 {[%emt 0:00:00]} c6 {[%emt 0:00:00]} 2. d4 {[%emt 0:00:00]} d5 {[%emt 0:00:00]} 3. Nc3 {[%emt 0:00:04]} g6 {[%emt 0:00:00]} 4. Nf3 {[%emt 0:00:12]} Bg7 {[%emt 0:00:00]} 5. e5 {[%emt 0:00:04]} Bg4 {[%emt 0:00:00]} 6. h3 {[%emt 0:00:02]} Bxf3 {[%emt 0:00:00]} 7. Qxf3 {[%emt 0:00:02]} e6 {[%emt 0:00:01]} 8. Bd3 {[%emt 0:00:06]} Nd7 {[%emt 0:00:09]} 9. Be3 {[%emt 0:00:18]} Ne7 {[%emt 0:00:11]} 10. Ne2 {[%emt 0:00:10]} O-O {[%emt 0:00:15]} 11. c3 {[%emt 0:00:08]} c5 {[%emt 0:00:10]} 12. h4 Bxe5 {[%emt 0:00:42]} 13. dxc5 {[%emt 0:01:06]} Bg7 {[%emt 0:00:22]} 14. h5 {[%emt 0:00:02]} Ne5 {[%emt 0:00:01]} 15. Qh3 {[%emt 0:00:14]} Nxd3+ {[%emt 0:01:08]} 16. Kd2 {[%emt 0:00:03]} Nxb2 {[%emt 0:01:58]} 17. hxg6 {[%emt 0:01:48]} Nc4+ {[%emt 0:00:01]} 18. Kc1 {[%emt 0:00:07]} fxg6 19. Qxe6+ {[%emt 0:01:15]} Rf7 {[%emt 0:00:27]} 20. Bd4 {[%emt 0:02:12]} Qc8 {[%emt 0:00:27]} 21. Qxc8+ {[%emt 0:01:09]} Rxc8 {[%emt 0:00:00]} 22. Bxg7 {[%emt 0:00:06]} Rxg7 {[%emt 0:00:02]} 23. Nd4 {[%emt 0:00:10]} Nf5 {[%emt 0:00:30]} 24. Ne6 {[%emt 0:00:37]} Re7 {[%emt 0:00:02]} 25. Nf4 {[%emt 0:00:01]} Rxc5 {[%emt 0:00:09]} 26. Rd1 {[%emt 0:00:10]} Nb6 {[%emt 0:00:04]} 27. Kd2 {[%emt 0:00:16]} d4 {[%emt 0:00:10]} 28. cxd4 {[%emt 0:00:08]} Nxd4 {[%emt 0:00:03]} 29. Kd3 {[%emt 0:00:06]} Nc6 {[%emt 0:00:14]} 30. Rh1 {[%emt 0:00:29]} Nb4+ {[%emt 0:00:06]} 31. Kd2 {[%emt 0:00:08]} Rc2+ {[%emt 0:00:03]} 32. Kd1 {[%emt 0:00:01]} Rxf2 {[%emt 0:00:08]} 33. g3 {[%emt 0:00:16]} Nc4 {[%emt 0:00:14]} 34. a3 {[%emt 0:00:09]} Rd2+ {[%emt 0:00:09]} 35. Kc1 {[%emt 0:00:04]} Nd3+ {[%emt 0:00:06]} 36. Nxd3 {[%emt 0:00:02]} Rxd3 37. Kc2 {[%emt 0:00:04]} Rxg3 {[%emt 0:00:05]} 38. Rh4 {[%emt 0:00:20]} Nxa3+ {[%emt 0:00:15]} 39. Kd2 {[%emt 0:00:09]} a6 {[%emt 0:00:07]} 40. Ra4 {[%emt 0:00:05]} Nb5 {[%emt 0:00:06]} 41. Rc1 {[%emt 0:00:05]} Rd7+ {[%emt 0:00:01]} 42. Ke2 {[%emt 0:00:04]} Nc3+ {[%emt 0:00:04]} 1-0